Cogmind - Beta 16.1 @@@ ROGUE MODE // 2026.04.20 @ 05:18:48 Player: PopcornMaze Result: Self-destructed Performance ------------- Evolutions (4) 2000 Regions Visited (5) 1000 Robots Destroyed (19) 95 Value Destroyed (487) 487 Prototype IDs (14) 280 Alien Tech Used (0) 0 Bonus (1300) 1300 TOTAL SCORE: 5162 Bonus ------- Entered DSFs 500 Registered with UFD 300 Met Optimus in HQ 500 Cogmind --------- Core Integrity 814/850 Matter 275/300 Energy 100/100 System Corruption 0% Temperature Cool (0) Movement Treading (160) Location -6/DSF Parts ------- > --- POWER (2) -------- (None) > --- PROPULSION (3) --- Improved Treads Improved Treads > --- UTILITY (4) ------ Visual Processing Unit Scrapoid Pod > --- WEAPON (6) ------- Beam Rifle > --- INVENTORY (5) ---- Core Shielding Force Field Beam Rifle Rocket Launcher Peak State ------------ > --- POWER ------------ Ion Engine > --- PROPULSION ------- Improved Treads Improved Treads Improved Treads > --- UTILITY ---------- Large Storage Unit Visual Processing Unit Scrapoid Pod Rainbow Chip > --- WEAPON ----------- Beam Rifle 1B-0RG's Assimilator > --- INVENTORY -------- Core Analyzer Core Shielding Force Field Beam Rifle Battle Cannon Rocket Launcher DRS Beacon [Rating: 104] Favorites ----------- Power Ion Engine Engine Ion Engine Propulsion Improved Treads Treads Improved Treads Wheel Compact Wheel Utility Visual Processing Unit Device Scrapoid Pod Storage Large Storage Unit Processor Visual Processing Unit Protection Core Shielding Weapon Beam Rifle Energy Gun Beam Rifle Ballistic Cannon Battle Cannon Launcher Grenade Launcher Special Melee Weapon 1B-0RG's Assimilator Build | -11 -10 -10 -9 -6 -6 ------- Run | Yrd Mat Sub Scr Fac DSF Slots Evolved 8 | . . . . 8 . Power 1 | . . . . 1 . Propulsion 1 | . . . . 1 . Utility 2 | . . . . 2 . Weapon 4 | . . . . 4 . Parts Attached 26 | 6 8 7 1 4 . Power 1 | 1 . . . . . Engine 1 | 1 . . . . . Core . | . . . . . . Reactor . | . . . . . . Propulsion 8 | 2 2 2 1 1 . Treads 6 | . 2 2 1 1 . Leg . | . . . . . . Wheel 2 | 2 . . . . . Hover . | . . . . . . Flight . | . . . . . . Utility 7 | 1 3 1 . 2 . Device 1 | . . . . 1 . Storage 3 | 1 2 . . . . Processor 2 | . 1 1 . . . Hackware . | . . . . . . Protection 1 | . . . . 1 . Artifact . | . . . . . . Weapon 10 | 2 3 4 . 1 . Energy Gun 7 | 2 3 2 . . . Energy Cannon . | . . . . . . Ballistic Gun . | . . . . . . Ballistic Cannon 1 | . . 1 . . . Launcher 1 | . . 1 . . . Special Weapon . | . . . . . . Impact Weapon . | . . . . . . Slashing Weapon . | . . . . . . Piercing Weapon . | . . . . . . Special Melee Weapon 1 | . . . . 1 . Unidentified Prototypes 1 | . . . . 1 . Parts Lost 8 | . . 4 . . 4 Power 1 | . . . . . 1 Propulsion 3 | . . 2 . . 1 Utility 1 | . . . . . 1 Weapon 3 | . . 2 . . 1 Highest Loss Streak 4 | . . 4 . . 4 To Critical Strikes . | . . . . . . Average Backups 7 | 2 7 8 7 7 5 Power . | . 1 . . . . Propulsion . | . 2 . . . . Utility 2 | . . 2 3 3 2 Weapon 2 | 1 3 3 2 3 2 Tool/Special . | . . . . . . Unused Backups 12 | . 5 1 3 . 3 Power 1 | . . . 1 . . Propulsion 2 | . 2 . . . . Utility 4 | . . . 2 . 2 Weapon 4 | . 3 . . . 1 Tool/Special 1 | . . 1 . . . Average Slot Usage (%) 88 | . 95 90 88 50 53 Engine 10 | . 14 9 11 5 4 Treads 23 | . 25 26 22 15 16 Storage 10 | . 14 9 11 5 3 Processor 19 | . 9 18 22 11 9 Energy Gun 21 | . 28 18 22 5 5 Launcher 2 | . . 6 . . . Peak Build Rating 104 | 6 13 36 35 104 104 Average Rating 31 | 3 11 32 32 97 93 On Entrance 31 | . 6 13 32 35 104 Avg Prop Armor Cover (%) . | . . . . . . Naked Turns . | . . . . . . Heaviest Build 91 | 13 31 34 31 91 91 Greatest Support 69 | 26 46 69 46 69 69 Greatest Overweight (x) 1 | . . . . 1 1 Average Overweight (x) . | . . . . 1 . Largest Inventory Capacity 25 | 8 25 15 15 15 15 Average Capacity 14 | 6 11 14 15 15 11 Most Carried 15 | 6 10 15 15 15 7 Average Carried 11 | 2 7 12 12 7 6 Final Capacity 15 | 8 15 15 15 15 5 Final Carried 15 | 4 10 11 15 7 4 Class Distribution -------------------- 73% | Mutant 26% | Skirmisher Dominant Class ---------------- Mutant | -10/Materials Skirmisher | -10/Subcaves Mutant | -9/Scraptown Mutant | -6/Factory Mutant | -6/DSF Resources | -11 -10 -10 -9 -6 -6 ----------- Run | Yrd Mat Sub Scr Fac DSF Matter Collected 595 | 179 139 227 45 . 5 Remotely . | . . . . . . Salvage Created 678 | . 258 420 . . . Parts 39 | . 19 20 . . . Haulers Intercepted 2 | . 2 . . . . Recyclers Shooed . | . . . . . . Parts Field Recycled . | . . . . . . Retrieved Matter . | . . . . . . Parts Self-Destructed 14 | . . 14 . . . Prevented . | . . . . . . Parts Restored . | . . . . . . Kills | -11 -10 -10 -9 -6 -6 ------- Run | Yrd Mat Sub Scr Fac DSF Combat Hostiles Destroyed 13 | . 3 10 . . . Guns 9 | . 3 6 . . . AOE 3 | . . 3 . . . Classes Destroyed 8 | . 5 3 . . . Hauler 2 | . 2 . . . . Recycler 1 | . 1 . . . . Operator 1 | . 1 . . . . Watcher 2 | . 2 . . . . Swarmer 3 | . 3 . . . . Grunt 1 | . . 1 . . . Sentry 1 | . . 1 . . . Subdweller 8 | . . 8 . . . Best Kill Streak 4 | . 4 2 . . . Combat Bots Only 3 | . 3 2 . . . Max Kills in Single Turn 2 | . 2 2 . . . Gunslinging . | . . . . . . Exploded 2 | . . 2 . . . Melee . | . . . . . . Uniques/NPCs Destroyed . | . . . . . . Combat | -11 -10 -10 -9 -6 -6 -------- Run | Yrd Mat Sub Scr Fac DSF Hostile Shots Fired 62 | . 1 41 . . 20 Missed 14 | . . 11 . . 3 Hits 48 | . 1 30 . . 17 Projectile 48 | . 1 30 . . 17 Critical Strikes 4 | . . 2 . . 2 Damage Taken 1410 | . 7 682 . . 721 Core 103 | . . 67 . . 36 Absorbed by Shields . | . . . . . . Core Remaining (%) 86 | 100 . . 73 . . Volleys Fired 66 | . 15 51 . . . Largest 3 | . 2 3 . . . Hottest 142 | . 112 142 . . . Shots Fired 143 | . 30 113 . . . Gun 125 | . 30 95 . . . Cannon 5 | . . 5 . . . Launcher 13 | . . 13 . . . Special . | . . . . . . Kinetic 5 | . . 5 . . . Thermal 125 | . 30 95 . . . Explosive 13 | . . 13 . . . Electromagnetic . | . . . . . . Robot Hit Streak 14 | . 11 14 . . . Robot Miss Streak 3 | . 3 3 . . . Penetration Max . | . . . . . . Secondary Targets 1 | . . 1 . . . Max Gunslinging Chain 1 | . . 1 . . . Shots Hit Robots 77 | . 19 58 . . . Core Hits 27 | . 10 17 . . . Critical Kills . | . . . . . . Critical Parts Destroyed . | . . . . . . Critical Strikes 11 | . 2 9 . . . Burn 11 | . 2 9 . . . Melee Attacks . | . . . . . . Impact . | . . . . . . Slashing . | . . . . . . Piercing . | . . . . . . Sneak Attacks . | . . . . . . Combat Hostiles . | . . . . . . Follow-up Attacks . | . . . . . . Damage Inflicted 1290 | . 290 1000 . . . Guns 1086 | . 290 796 . . . Cannons . | . . . . . . Explosions 204 | . . 204 . . . Melee . | . . . . . . Ramming . | . . . . . . Kinetic . | . . . . . . Thermal 1086 | . 290 796 . . . Explosive 204 | . . 204 . . . Electromagnetic . | . . . . . . Impact . | . . . . . . Slashing . | . . . . . . Piercing . | . . . . . . Highest Corruption . | . . . . . . Average Corruption . | . . . . . . Corruption Purged . | . . . . . . Corruption Blocked . | . . . . . . Overload Shots . | . . . . . . Overflow Damage . | . . . . . . Projectiles . | . . . . . . Explosions . | . . . . . . Melee . | . . . . . . Knockbacks . | . . . . . . Impact . | . . . . . . Kinetic . | . . . . . . Secondary . | . . . . . . Self-Inflicted Damage 23 | . . 23 . . . Shots 1 | . . 1 . . . Rammed . | . . . . . . Targets Rammed 1 | . 1 . . . . Kicked . | . . . . . . Crushed 1 | . 1 . . . . Highest Temperature 275 | . 204 275 . . . Average Temperature 57 | . 83 36 . . . Received Heat Transfer 461 | . . 461 . . . Siege Activations . | . . . . . . Martial Activations . | . . . . . . Shielding Activations . | . . . . . . Robots Disrupted . | . . . . . . Combat Hostiles . | . . . . . . Robots Corrupted . | . . . . . . Combat Hostiles . | . . . . . . Parts Fried . | . . . . . . Impact Corruptions . | . . . . . . Robots Melted 2 | . 1 1 . . . Combat Hostiles 1 | . . 1 . . . Parts Melted 8 | . 3 5 . . . Heat Transferred 3589 | . 888 2701 . . . Parts Sabotaged . | . . . . . . Parts Stolen . | . . . . . . Parts Stripped . | . . . . . . Power Chain Reactions . | . . . . . . Alert | -11 -10 -10 -9 -6 -6 ------- Run | Yrd Mat Sub Scr Fac DSF Maximum Alert Level . | . . . . . . Low Security (%) 100 | 100 100 . . 100 100 Level 1 . | . . . . . . Level 2 . | . . . . . . Level 3 . | . . . . . . Level 4 . | . . . . . . Level 5 . | . . . . . . High Security . | . . . . . . Max Security . | . . . . . . Peak Influence 70 | . 70 . . . . Initial . | . . . . . . Average 8 | . 11 . . . . Influence Increases 155 | . 115 40 . . . Destroy 0b10 Robot/C 100 | . 60 40 . . . Destroy 0b10 Robot/NC 30 | . 30 . . . . Destroy Leader 18 | . 18 . . . . Successful Hack 7 | . 7 . . . . Influence Decreases 155 | . 95 60 . . . Entered New Map 10 | . . 10 . . . Time Decay 145 | . 95 50 . . . Squads Dispatched 1 | . . . . . 1 Investigation . | . . . . . . Extermination . | . . . . . . Reinforcement 1 | . . . . . 1 Assault . | . . . . . . Garrison . | . . . . . . Intercept . | . . . . . . Searches Triggered . | . . . . . . Construction Impeded . | . . . . . . Haulers Reinforced . | . . . . . . Active Scanning Responses . | . . . . . . Cargo Convoy Interrupts . | . . . . . . Stealth | -11 -10 -10 -9 -6 -6 --------- Run | Yrd Mat Sub Scr Fac DSF Distress Signals . | . . . . . . Communications Jammed . | . . . . . . Distress Signals . | . . . . . . Times Spotted 22 | . 6 12 . . 4 Peak Tracking Total 4 | . 2 3 . . 4 Tactical Retreats 1 | . . 1 . . . Traps | -11 -10 -10 -9 -6 -6 ------- Run | Yrd Mat Sub Scr Fac DSF Traps Triggered 1 | . . . . . 1 Indirectly . | . . . . . . Trap Hack Attempts . | . . . . . . Triggered . | . . . . . . Disarmed . | . . . . . . Reprogrammed . | . . . . . . Reused . | . . . . . . Traps Extracted . | . . . . . . Installed . | . . . . . . Triggered . | . . . . . . Machines | -11 -10 -10 -9 -6 -6 ---------- Run | Yrd Mat Sub Scr Fac DSF Machines Disabled 2 | . . 2 . . . Max in Single Turn 2 | . . 2 . . . Machines Repaired . | . . . . . . Machines Dismantled . | . . . . . . Machines Sabotaged . | . . . . . . Overloaded Fab Kills . | . . . . . . Hacking | -11 -10 -10 -9 -6 -6 --------- Run | Yrd Mat Sub Scr Fac DSF Machines Accessed 8 | . 5 1 1 1 . Terminals 4 | . 3 . . 1 . Fabricators . | . . . . . . Repair Stations . | . . . . . . Recycling Units 2 | . 2 . . . . Scanalyzers . | . . . . . . Garrison Access . | . . . . . . Total Hacks 13 | . 10 1 1 1 . Successful 7 | . 4 1 1 1 . Failed 6 | . 6 . . . . Catastrophic . | . . . . . . Database Lockouts . | . . . . . . Manual 6 | . 6 . . . . Terminals 9 | . 8 . . 1 . Fabricators . | . . . . . . Repair Stations . | . . . . . . Recycling Units 2 | . 2 . . . . Scanalyzers . | . . . . . . Garrison Access . | . . . . . . Terminal Hacks 4 | . 1 1 1 1 . Record 1 | . . . 1 . . Open DSF 1 | . . . . 1 . Registered Components 1 | . 1 . . . . Proto ID Catalog 1 | . . 1 . . . Fabricator Hacks . | . . . . . . Repair Station Hacks . | . . . . . . Recycling Unit Hacks 2 | . 2 . . . . Report Inventory 2 | . 2 . . . . Scanalyzer . | . . . . . . Garrison Access Hacks . | . . . . . . Unauthorized Hacks 1 | . 1 . . . . Terminals 1 | . 1 . . . . Botnet 1 | . 1 . . . . Fabricators . | . . . . . . Repair Stations . | . . . . . . Recycling Units . | . . . . . . Scanalyzers . | . . . . . . Garrison Access . | . . . . . . Data Cores Recovered 1 | . 1 . . . . Used . | . . . . . . Hacking Detections 2 | . 2 . . . . Full Trace Events . | . . . . . . Feedback Events . | . . . . . . Feedback Blocked . | . . . . . . Robot Schematics Acquired . | . . . . . . Robots Built . | . . . . . . Authchips . | . . . . . . Time . | . . . . . . Total Robot Build Rating . | . . . . . . Part Schematics Acquired . | . . . . . . Parts Built . | . . . . . . Authchips . | . . . . . . Time . | . . . . . . Total Part Build Rating . | . . . . . . Part Studies Acquired . | . . . . . . Parts Repaired . | . . . . . . Time . | . . . . . . Parts Recycled . | . . . . . . Recycled Matter . | . . . . . . Retrieved Matter . | . . . . . . Retrieved Components . | . . . . . . Parts Scanalyzed . | . . . . . . Part Schematics Acquired . | . . . . . . Parts Damaged . | . . . . . . Bothacking | -11 -10 -10 -9 -6 -6 ------------ Run | Yrd Mat Sub Scr Fac DSF Used RIF Installer . | . . . . . . Robots Hacked . | . . . . . . Non-combat . | . . . . . . Combat . | . . . . . . Robot Hacks Applied . | . . . . . . Relay Couplers Released . | . . . . . . Fabnet Peak Effective % . | . . . . . . Robots Rewired . | . . . . . . Allies Hacked . | . . . . . . Hacks Repelled . | . . . . . . Allies | -11 -10 -10 -9 -6 -6 -------- Run | Yrd Mat Sub Scr Fac DSF Total Allies . | . . . . . . Largest Group . | . . . . . . Highest-Rated Group . | . . . . . . Highest-Rated Ally . | . . . . . . Initial UFD Resources 23 | . . . . 23 23 Total Orders . | . . . . . . Ally Attacks . | . . . . . . Total Damage . | . . . . . . Kills . | . . . . . . Allies Corrupted . | . . . . . . Allies Melted . | . . . . . . Intel | -11 -10 -10 -9 -6 -6 ------- Run | Yrd Mat Sub Scr Fac DSF Active Infowar (turns) 4846 | . 344 1808 2618 17 59 Optics 4846 | . 344 1808 2618 17 59 Robot Analysis Total . | . . . . . . Derelict Logs Recovered 1 | . . 1 . . . Drone Launches . | . . . . . . Drone Recoveries . | . . . . . . Exploration | -11 -10 -10 -9 -6 -6 ------------- Run | Yrd Mat Sub Scr Fac DSF Turns Passed 5052 | 60 490 1808 2618 17 59 Spaces Moved 2994 | 51 276 1015 1621 6 25 Core 2 | 2 . . . . . Treads 2907 | . 240 1015 1621 6 25 Legs . | . . . . . . Wheels 85 | 49 36 . . . . Hover . | . . . . . . Flight . | . . . . . . Fastest Speed 50 | 50 90 160 160 240 160 Average Speed 158 | 89 150 160 160 240 233 Slowest Speed 240 | 100 160 160 160 240 240 Overloaded Moves . | . . . . . . Propulsion Burnouts . | . . . . . . Robots Hopped . | . . . . . . Potential Cave-ins . | . . . . . . Cave-ins Triggered . | . . . . . . Exploration Rate (%) 47 | 3 39 56 88 . 50 Regions Visited 5 Branch Regions 2 Pre-discovered Areas . | . . . . . . Known Exits Taken 1 | . . . . 1 . Unknown Exits Taken 4 | 1 1 1 1 . . Scrap Searched 6 | . . 5 1 . . Spaces Dug . | . . . . . . Terrain Destroyed 59 | . . 59 . . . Melee . | . . . . . . Projectile . | . . . . . . AOE 59 | . . 59 . . . Terrain Rammed . | . . . . . . Walls Destroyed . | . . . . . . Machines Disabled . | . . . . . . Actions | -11 -10 -10 -9 -6 -6 --------- Run | Yrd Mat Sub Scr Fac DSF Total 3166 | 63 323 1094 1649 11 26 Wait 17 | 1 . 4 12 . . Move 2989 | 50 275 1014 1620 5 25 Hop . | . . . . . . Pick Up 40 | 6 12 13 9 . . Fast Attach 9 | 4 3 2 . . . Attach 11 | 2 1 4 . 4 . Detach 1 | . . . . 1 . Swap 9 | . 5 3 1 . . Drop 23 | . 11 3 7 1 1 Fire 66 | . 15 51 . . . Melee . | . . . . . . Ram . | . . . . . . Kick . | . . . . . . Crush 1 | . 1 . . . . Escape Stasis . | . . . . . . Rewire . | . . . . . . Trap . | . . . . . . Miscellaneous . | . . . . . . Route ------- -11/Scrapyard -10/Materials -10/Subcaves (discovered 2 exits: [*Mat] / *Scr) -9/Scraptown (discovered 2 exits: *Fac x2) -6/Factory -6/DSF History --------- Turn | Location | Event 7 | -11/Scrapyard | Discovered new exit (range 15) 61 | -11/Scrapyard | Entered Materials 303 | -10/Materials | Build established: Mutant 543 | -10/Materials | Discovered new exit (range 7) 551 | -10/Materials | Entered Subcaves 552 | -10/Subcaves | Approached by a straggling Scientist 665 | -10/Subcaves | Visited 4L-MR0's lab 694 | -10/Subcaves | Found Prototype Special Melee Weapon 718 | -10/Subcaves | Found Rainbow Chip 719 | -10/Subcaves | Attached Rainbow Chip, gained temporary slots: Power, Propulsion, Utility, Weapon 1060 | -10/Subcaves | Build established: Skirmisher 1605 | -10/Subcaves | Discovered new exit (range 7) 1686 | -10/Subcaves | Learned Materials emergency access door positions 1972 | -10/Subcaves | Curiously followed by a Cobbler waking with a query about "LVR3C" 2135 | -10/Subcaves | Shifting Twisted Machinery released Sub. Monowheel 2138 | -10/Subcaves | Lost 4 parts (2n2w) 2142 | -10/Subcaves | Shifting Twisted Machinery released Mak. System Shield 2294 | -10/Subcaves | A swath of the cavern ceiling suddenly collapsed 2355 | -10/Subcaves | Scientist uncovered a shortcut to Scraptown 2359 | -10/Subcaves | Entered Scraptown 2394 | -9/Scraptown | Build established: Mutant 2539 | -9/Scraptown | Heard Great Nut preacher, LISTEN AND RECITE! 2580 | -9/Scraptown | Discovered new exit (range 11) 2727 | -9/Scraptown | Visited Awakened 2791 | -9/Scraptown | Visited Shadow of the Wyrm 2822 | -9/Scraptown | Visited TADAMA 2849 | -9/Scraptown | Visited Cyclists 2895 | -9/Scraptown | Visited Symbiants 3836 | -9/Scraptown | Visited UFD Registry 3836 | -9/Scraptown | Registered with UFD as "Novabucket" 3887 | -9/Scraptown | Visited Scrapoid Pod Storage 3946 | -9/Scraptown | Visited Curators Association 3993 | -9/Scraptown | Visited Research Penetration Think Tank 4036 | -9/Scraptown | Visited Abandonware Association 4182 | -9/Scraptown | Visited Junk Repository 4262 | -9/Scraptown | Visited Derelict Rescue Squad 4280 | -9/Scraptown | Found DRS Beacon 4282 | -9/Scraptown | Found DRS Beacon 4307 | -9/Scraptown | Found DRS Beacon 4415 | -9/Scraptown | Found Scrapoid Pod 4445 | -9/Scraptown | Visited DA-N13 Charitable Foundation 4452 | -9/Scraptown | Found DCF Scrap (28 items) 4544 | -9/Scraptown | Visited LU-1G1's Boring Crew 4842 | -9/Scraptown | Met Optimus 4842 | -9/Scraptown | Accepted into 0bPrime 4956 | -9/Scraptown | Discovered new exit (range 3) 4977 | -9/Scraptown | Entered Factory 4977 | -6/Factory | Evolved 8 slots: Power x1, Propulsion x1, Utility x2, Weapon x4 4978 | -6/Factory | Identified 1B-0RG's Assimilator 4994 | -6/Factory | Identified exit to DSF 4994 | -6/Factory | Entered DSF 5026 | -6/DSF | Additional patrols routed to DSF 5053 | -6/DSF | Self-destructed Last Messages --------------- 05016_ ALERT: Suspicious intruders detected, dispatching Specialist reinforcements to area. 05026_ Hostiles detected in DSF, routing additional patrols. 05028_ Penetrated by Slug. 05032_ Rainbow Chip destroyed. 05033_ Temporary Power slot lost. 05033_ Temporary Utility slot lost. 05037_ Penetrated by Slug. 05038_ Triggered Alarm Trap. 05038_ An alarm sounds. 05045_ Acquired 5 matter. 05045_ Imp. Treads destroyed. 05045_ Critical hit (Blast). 05049_ Penetrated by Slug. 05049_ Ion Engine destroyed. 05049_ 1B-0RG's Assimilator destroyed. 05049_ Critical hit (Blast). 05051_ Slug penetrates Wall. 05053_ Dropped DRS Beacon. Map ----- +----------------------------------------------------+ | ????????????????????????????????????????????????? | | ????????????????????????????????????????????????? | | ????????????????????????????????????????????????? | | ????????????????????????????????????????????????? | | ????????????????????????????????????????????????? | | ????????????????????????????????????????????????? | | ????????????????????????????????????????????????? | | ????????????????????????????????????????????????? | | ??????????????????????? ??????????????????????? | | ??????????????????????? ??????????????????????? | | ??????????????????????? ??????????????????????? | | ??????????????????????# #?????????????????????? | | ??????????????????????= ?????????????????????? | | ??????????????????????= ?????????????????????? | | ??????????????????????= ?????????????????????? | | ??????????????????????# #?????????????????????? | | ??????????????????????[ !?????????????????????? | | ??????????????????????[x !?????????????????????? | | ??????????????????????[ !?????????????????????? | | ????????????#???###???# #???###???#???????????? | | ????????????# ?#!!!?## ##?!!!#?!!#???????????? | | ????????! ## #!!!##A A##!!!#!!!## ???????? | | ????????! ??????? | | ?????????? ???????? | | ???????????????? xH ???? ???????? | | ?????????????????????#A @ A#?????????# !???????? | | ?????????????????????## ##?????????# !???????? | | ????????????????????### ;##????????# ##??????? | | ????????????????????#!! %]]#???????? !#??????? | | ????????????????????#!! % ]]#???????? !???????? | | ????????????????????#!! ]]#???????? !???????? | | ????????????????????### ;;#???????## ##??????? | | ????????????????????# % % #???????? #??????? | | ????????????????????# ! #???????? #??????? | | ????????????????????# !] ########?# #???????? | | ????????????????????### %###!!!#!!### ###?????? | | ?????????????#!!#!!!### x###!!!#!!## ""####??? | | ????????? """""#??? | | ????????? % ""#?????? | | ??????????""## # # # #!!##"""""#?????? | | ????????????????###?# #########"""""#?????? | | ????????????????????####;;;##???????##"####?????? | | ????????????????????????###??????????#"#????????? | | ?????????????????????????????????????#""????????? | | ?????????????????????????????????????###????????? | | ????????????????????????????????????????????????? | | ????????????????????????????????????????????????? | | ????????????????????????????????????????????????? | | ????????????????????????????????????????????????? | | | +----------------------------------------------------+ Best States ------------- Heat Dissipation 37 Energy Generation 10 Energy Capacity 250 Matter Stores 300 Matter Capacity 300 Sight Range 18 Terrain Scan Density 10 Evasion (%) 42 Recoil Reduction 3 Item Schematics ----------------- None Robot Schematics ------------------ None Fabricated ------------ Nothing Repaired ---------- Nothing Studied --------- None Alien Tech Used ----------------- None Achievements -------------- Respectable Loadout Challenges ------------ None Game ------ Seed AerolevCloakingPurifier Manual? 0 Play Time 00:29:54 Cumulative 15.4 hours Start 2026.04.20 @ 04:48:37 End 2026.04.20 @ 05:18:48 Sessions 1 Manual Loads 0 Difficulty Rogue Special Mode None Game No. 26 Rogue 26 Adventurer 0 Explorer 0 Win Type - Total 0 Types 0/0/0/0/0/0/0/0/0/0 Lore% 6 Gallery% 17 Achievement% 19 Wizard Run 0 Options --------- Layout 1 ASCII 0 Keyboard 0 Movement Numpad Keybinds 0 Fullscreen 1 Font 32/SmallcapsGlow Map View 50x35 Zoom Use 0% Tactical HUD 1 Map Filters NONE Filters NONE Steam 1 RUN: c01b7865-9927-458f-beeb-6663aeb48486